fUST/lending_fUST_20250121
["ID","MTS","AMOUNT","RATE_DAILY","PERIOD"]
[349782033,1737424246680,-502.28527726,0.00021917,3]
[349782035,1737424246690,-500.0,0.00021917,3]
[349782037,1737424246700,-500.0,0.00021917,3]
[349782040,1737424246713,-1171.94,0.00021917,3]
[349782042,1737424246726,-501.83684787,0.00021917,3]
[349782044,1737424246736,-500.0,0.00021917,3]
[349782046,1737424246747,-151.557652,0.00021917,2]
[349782048,1737424246756,-500.0,0.00021917,3]
[349782050,1737424246770,-198.34955714,0.00021917,3]
[349782052,1737424246779,-502.10214332,0.00021917,3]
[349782054,1737424246789,-535.98,0.00021917,3]
[349782056,1737424246799,-500.0,0.00021917,3]
[349782058,1737424246808,-500.0,0.00021917,3]
[349782060,1737424246818,-500.0,0.00021917,3]
[349782062,1737424246827,-500.0,0.00021917,3]
[349782064,1737424246836,-500.0,0.00021917,3]
[349782066,1737424246846,-500.0,0.00021917,2]
[349782068,1737424246855,-151.0,0.00021917,2]
[349782070,1737424246865,-151.0,0.00021917,2]
[349782072,1737424246875,-500.0,0.00021917,3]
[349782074,1737424246884,-169.648891,0.00021917,2]
[349782076,1737424246893,-500.0,0.00021917,3]
[349782077,1737424246903,-439.69524759,0.00021917,3]
[349782078,1737424246912,-500.0,0.00021917,3]
[349782079,1737424246922,-151.0,0.00021917,2]
[349782080,1737424246932,-157.179404,0.00021917,2]
[349782081,1737424246941,-500.0,0.00021917,3]
[349782082,1737424246950,-500.0,0.00021917,3]
[349782083,1737424246960,-504.70852396,0.00021917,3]
[349782084,1737424246969,-35483.65,0.00021917,3]
[349782085,1737424246979,-500.0,0.00021917,3]
[349782086,1737424246988,-500.0,0.00021917,3]
[349782087,1737424246998,-2623.29,0.00021917,2]
[349782088,1737424247008,-500.0,0.00021917,3]
[349782089,1737424247019,-151.669314,0.00021917,2]
[349782090,1737424247029,-500.0,0.00021917,3]
[349782091,1737424247038,-500.0,0.00021917,3]
[349782092,1737424247047,-500.0,0.00021917,3]
[349782094,1737424247057,-500.85040355,0.00021917,3]
[349782096,1737424247067,-501.91557152,0.00021917,3]
[349782098,1737424247076,-500.0,0.00021917,3]
[349782099,1737424247085,-1953.99,0.00021917,3]
[349782101,1737424247095,-535.07933594,0.00021917,3]
[349782103,1737424247104,-500.0,0.00021917,3]
[349782105,1737424247114,-502.30343379,0.00021917,3]
[349782106,1737424247122,-500.0,0.00021917,3]
[349782107,1737424247130,-6030.21,0.00021917,3]
[349782108,1737424247140,-501.27561596,0.00021917,3]
[349782109,1737424247150,-501.83380985,0.00021917,3]
[349782110,1737424247160,-500.0,0.00021917,3]
[349782111,1737424247170,-4022.02,0.00021917,3]
[349782112,1737424247179,-500.0,0.00021917,3]
[349782113,1737424247188,-500.0,0.00021917,3]
[349782114,1737424247198,-500.0,0.00021917,3]
[349782115,1737424247207,-1550.13,0.00021917,3]
[349782116,1737424247217,-501.66533514,0.00021917,3]
[349782117,1737424247226,-5328.32,0.00021917,3]
[349782118,1737424247235,-500.0,0.00021917,3]
[349782119,1737424247245,-500.0,0.00021917,3]
[349782120,1737424247255,-500.0,0.00021917,3]
[349782121,1737424247266,-431.25832105,0.00021917,3]
[349782122,1737424247279,-182.81464743,0.00021917,3]
[349782123,1737424247290,-500.0,0.00021917,3]
[349782124,1737424247299,-501.71054458,0.00021917,3]
[349782125,1737424247309,-500.0,0.00021917,3]
[349782126,1737424247319,-500.0,0.00021917,3]
[349782127,1737424247329,-2325.3,0.00021917,3]
[349782128,1737424247339,-501.61280234,0.00021917,3]
[349782129,1737424247349,-500.0,0.00021917,3]
[349782130,1737424247359,-500.0,0.00021917,3]
[349782131,1737424247368,-510.08,0.00021917,3]
[349782132,1737424247378,-547.95996291,0.00021917,3]
[349782133,1737424247388,-502.4615765,0.00021917,3]
[349782134,1737424247397,-501.55965703,0.00021917,3]
[349782136,1737424247407,-763.06,0.00021917,3]
[349782138,1737424247416,-500.0,0.00021917,3]
[349782140,1737424247426,-1912.07,0.00021917,3]
[349782142,1737424247435,-500.0,0.00021917,3]
[349782144,1737424247444,-200.0,0.00021917,3]
[349782146,1737424247453,-501.41758819,0.00021917,3]
[349782148,1737424247462,-500.0,0.00021917,3]
[349782149,1737424247471,-500.0,0.00021917,3]
[349782150,1737424247481,-421.06811589,0.00021917,3]
[349782152,1737424247490,-500.0,0.00021917,3]
[349782154,1737424247500,-500.0,0.00021917,3]
[349782156,1737424247511,-500.0,0.00021917,3]
[349782157,1737424247524,-500.0,0.00021917,3]
[349782158,1737424247534,-500.0,0.00021917,3]
[349782159,1737424247544,-501.76861991,0.00021917,3]
[349782160,1737424247555,-500.0,0.00021917,3]
[349782161,1737424247564,-500.0,0.00021917,3]
[349782162,1737424247574,-186.495828,0.00021917,2]
[349782163,1737424247583,-500.0,0.00021917,3]
[349782164,1737424247593,-500.0,0.00021917,3]
[349782165,1737424247602,-500.0,0.00021917,2]
[349782166,1737424247612,-500.0,0.00021917,3]
[349782167,1737424247621,-151.0,0.00021917,2]
[349782168,1737424247631,-151.0,0.00021917,2]
[349782169,1737424247640,-151.0,0.00021917,2]
[349782170,1737424247650,-500.0,0.00021917,3]
[349782171,1737424247659,-151.0,0.00021917,2]
[349782172,1737424247669,-151.0,0.00021917,2]
[349782173,1737424247682,-500.97786736,0.00021917,3]
[349782174,1737424247691,-507.68606469,0.00021917,3]
[349782175,1737424247700,-1570.21,0.00021917,3]
[349782176,1737424247710,-500.0,0.00021917,3]
[349782177,1737424247720,-500.0,0.00021917,3]
[349782183,1737424247875,-500.0,0.00021917,3]
[349782184,1737424247886,-500.0,0.00021917,3]
[349782185,1737424247896,-500.0,0.00021917,3]
[349782186,1737424247905,-502.73815496,0.00021917,2]
[349782187,1737424247915,-150.3000551,0.00021917,3]
[349782188,1737424247924,-624.84,0.00021917,3]
[349782189,1737424247934,-593.04,0.00021917,3]
[349782190,1737424247943,-500.0,0.00021917,3]
[349782191,1737424247953,-500.73427901,0.00021917,3]
[349782192,1737424247962,-500.0,0.00021917,3]
[349782193,1737424247972,-500.0,0.00021917,3]
[349782194,1737424247981,-994.31,0.00021917,3]
[349782195,1737424247991,-500.0,0.00021917,3]
[349782196,1737424248000,-403.77019345,0.00021917,3]
[349782197,1737424248012,-500.0,0.00021917,3]
[349782198,1737424248022,-1989.46,0.00021917,3]
[349782199,1737424248032,-501.98350979,0.00021917,3]
[349782200,1737424248042,-502.75052254,0.00021917,3]
[349782201,1737424248052,-500.0,0.00021917,3]
[349782202,1737424248062,-151.0,0.00021917,2]
[349782203,1737424248071,-151.0,0.00021917,2]
[349782204,1737424248081,-160.032072,0.00021917,2]
[349782205,1737424248091,-500.0,0.00021917,3]
[349782206,1737424248100,-151.0,0.00021917,2]
[349782207,1737424248110,-155.5154,0.00021917,2]
[349782208,1737424248120,-151.0,0.00021917,2]
[349782209,1737424248130,-151.0,0.00021917,2]
[349782210,1737424248140,-500.0,0.00021917,3]
[349782211,1737424248150,-151.0,0.00021917,2]
[349782212,1737424248159,-151.0,0.00021917,2]
[349782213,1737424248169,-151.0,0.00021917,2]
[349782214,1737424248179,-500.0,0.00021917,3]
[349782215,1737424248189,-500.0,0.00021917,3]
[349782216,1737424248199,-151.0,0.00021917,2]
[349782218,1737424248208,-500.0,0.00021917,3]
[349782220,1737424248218,-151.0,0.00021917,2]
[349782221,1737424248228,-151.0,0.00021917,2]
[349782222,1737424248238,-151.0,0.00021917,2]
[349782223,1737424248248,-151.0,0.00021917,2]
[349782224,1737424248258,-500.0,0.00021917,3]
[349782225,1737424248272,-500.0,0.00021917,3]
[349782227,1737424248283,-500.0,0.00021917,3]
[349782228,1737424248293,-500.0,0.00021917,3]
[349782230,1737424248303,-14031.74,0.00021917,3]
[349782231,1737424248315,-500.0,0.00021917,3]
[349782232,1737424248324,-502.63323059,0.00021917,3]
[349782233,1737424248334,-965.33,0.00021917,3]
[349782234,1737424248345,-500.0,0.00021917,3]
[349782235,1737424248354,-500.0,0.00021917,3]
[349782236,1737424248364,-777.68,0.00021917,3]
[349782237,1737424248381,-617.53858657,0.00021917,3]
[349782238,1737424248393,-500.85657832,0.00021917,3]
[349782239,1737424248403,-151.0,0.00021917,2]
[349782240,1737424248413,-152.758104,0.00021917,2]
[349782241,1737424248423,-456.41603889,0.00021917,3]
[349782242,1737424248434,-500.0,0.00021917,3]
[349782243,1737424248444,-151.0,0.00021917,2]
[349782244,1737424248453,-156.990608,0.00021917,2]
[349782245,1737424248463,-500.0,0.00021917,3]
[349782246,1737424248473,-500.0,0.00021917,3]
[349782247,1737424248482,-151.0,0.00021917,2]
[349782248,1737424248492,-151.0,0.00021917,2]
[349782249,1737424248502,-770.97,0.00021917,3]
[349782250,1737424248513,-151.0,0.00021917,2]
[349782251,1737424248524,-151.0,0.00021917,2]
[349782252,1737424248534,-151.0,0.00021917,2]
[349782253,1737424248544,-3485.06,0.00021917,3]
[349782254,1737424248555,-501.628794,0.00021917,3]
[349782255,1737424248565,-151.0,0.00021917,2]
[349782256,1737424248575,-151.0,0.00021917,2]
[349782257,1737424248585,-151.0,0.00021917,2]
[349782258,1737424248595,-500.0,0.00021917,3]
[349782259,1737424248605,-151.0,0.00021917,2]
[349782260,1737424248616,-500.0,0.00021917,3]
[349782261,1737424248626,-151.0,0.00021917,2]
[349782262,1737424248636,-500.0,0.00021917,3]
[349782263,1737424248647,-500.0,0.00021917,3]
[349782264,1737424248657,-500.0,0.00021917,3]
[349782265,1737424248667,-500.0,0.00021917,3]
[349782266,1737424248678,-503.58293383,0.00021917,3]
[349782267,1737424248689,-237.23473962,0.00021917,3]
[349782268,1737424248699,-10902.23,0.00021917,3]
[349782269,1737424248715,-762.39624965,0.00021917,3]
[349782270,1737424248949,-1253.18375035,0.00021917,3]
[349782271,1737424248959,-511.01360517,0.00021917,3]
[349782272,1737424248968,-10465.7,0.00021917,3]
[349782273,1737424248979,-412.32417627,0.00021917,3]
[349782274,1737424248992,-88.58366053,0.00021917,3]
[349782275,1737424249002,-501.06373599,0.00021917,3]
[349782276,1737424249015,-501.89060454,0.00021917,3]
[349782277,1737424249026,-500.0,0.00021917,3]
[349782278,1737424249036,-500.0,0.00021917,3]
[349782279,1737424249046,-500.0,0.00021917,3]
[349782280,1737424249057,-825.37,0.00021917,3]
[349782281,1737424249067,-508.95917405,0.00021917,3]
[349782282,1737424249077,-500.0,0.00021917,3]
[349782283,1737424249087,-1030.58,0.00021917,3]
[349782284,1737424249098,-501.9607726,0.00021917,3]
[349782285,1737424249108,-500.0,0.00021917,3]
[349782286,1737424249118,-502.03195443,0.00021917,3]
[349782287,1737424249128,-69.36009786,0.00021917,3]
[349782289,1737424451163,421.36138161,0.00019817,2]
[349782291,1737424623327,1775.82654107,0.0002,2]
[349782292,1737424632205,305.63061056,0.0002,2]
[349782293,1737424753261,280.90758774,0.00019817,2]
[349782300,1737424882097,1000.0,0.0002,2]
[349782301,1737424894167,1000.0,0.0002,2]
[349782302,1737424917636,477.49,0.0002,2]
[349782303,1737425055060,187.27172516,0.00019817,2]
[349782304,1737425104594,165.025574,0.00013973,2]
[349782306,1737425271986,172.7095059,0.00024,120]
[349782307,1737425280892,1778.0,0.0002,2]
[349782346,1737425432763,-3185.2152334,0.00020513,2]
[349782348,1737425432774,-184.0352029,0.00020665,2]
[349782350,1737425432785,-459.455,0.0002082,2]
[349782352,1737425432795,-500.0,0.00020999,7]
[349782354,1737425432804,-300.0,0.00020999,2]
[349782356,1737425432815,-12912.79428385,0.00021,2]
[349782374,1737425433038,-1560.40033183,0.00021,2]
[349782375,1737425433050,-603.44101972,0.000212,2]
[349782376,1737425433086,-446.55897948,0.000212,2]
[349782377,1737425433096,-2439.0,0.00021334,2]
[349782378,1737425433108,-353.8262533,0.000214,2]
[349782379,1737425433117,-353.8262533,0.000214,2]
[349782380,1737425433127,-395.0,0.00021598,2]
[349782381,1737425433136,-353.8262533,0.000216,2]
[349782382,1737425433146,-353.8262533,0.000216,2]
[349782383,1737425433156,-353.8262533,0.000216,2]
[349782384,1737425433166,-645.2023711,0.000216,2]
[349782385,1737425433175,-353.8262533,0.000216,2]
[349782386,1737425433185,-353.8262533,0.000216,2]
[349782387,1737425433195,-539.593,0.00021688,2]
[349782388,1737425433205,-2085.443,0.00021688,2]
[349782389,1737425433215,-235.747596,0.00021697,2]
[349782390,1737425433225,-355.2055741,0.000217,2]
[349782391,1737425433234,-353.8262533,0.000217,2]
[349782392,1737425433245,-353.8262533,0.000217,2]
[349782393,1737425433254,-353.8262533,0.000217,2]
[349782394,1737425433263,-504.78076707,0.00021799,2]
[349782395,1737425433273,-152.88100941,0.000218,2]
[349782396,1737425433283,-1899.20514323,0.00021817,3]
[349782397,1737425433292,-203.792,0.00021899,2]
[349782398,1737425433302,-14455.66900716,0.000219,2]
[349782399,1737425433315,-29354.61204538,0.000219,2]
[349782400,1737425433325,-376.95688043,0.000219,3]
[349782401,1737425433336,-500.0,0.00021916,2]
[349782402,1737425433346,-500.0,0.00021916,2]
[349782403,1737425433356,-500.0,0.00021916,2]
[349782404,1737425433365,-500.0,0.00021916,2]
[349782405,1737425433375,-500.0,0.00021916,2]
[349782406,1737425433384,-500.0,0.00021916,2]
[349782407,1737425433394,-500.0,0.00021916,2]
[349782408,1737425433404,-500.0,0.00021916,2]
[349782409,1737425433413,-500.0,0.00021916,2]
[349782410,1737425433423,-589.205382,0.00021916,2]
[349782411,1737425433433,-500.0,0.00021916,2]
[349782412,1737425433442,-500.0,0.00021916,2]
[349782413,1737425433452,-500.0,0.00021916,2]
[349782414,1737425433462,-500.0,0.00021916,2]
[349782415,1737425433472,-500.0,0.00021916,2]
[349782416,1737425433482,-500.0,0.00021916,2]
[349782417,1737425433492,-500.0,0.00021916,2]
[349782418,1737425433501,-500.0,0.00021916,2]
[349782419,1737425433511,-500.0,0.00021916,2]
[349782420,1737425433520,-500.0,0.00021916,2]
[349782421,1737425433529,-500.0,0.00021916,2]
[349782422,1737425433540,-500.0,0.00021916,2]
[349782423,1737425433549,-500.0,0.00021916,2]
[349782424,1737425433559,-262.70524573,0.00021916,2]
[349782425,1737425433568,-500.0,0.00021916,2]
[349782426,1737425433583,-500.0,0.00021916,2]
[349782427,1737425433594,-500.0,0.00021916,2]
[349782428,1737425433605,-500.0,0.00021916,2]
[349782429,1737425433620,-500.0,0.00021916,2]
[349782430,1737425433630,-500.0,0.00021916,2]
[349782431,1737425433641,-500.0,0.00021916,2]
[349782432,1737425433651,-500.0,0.00021916,2]
[349782433,1737425433661,-500.0,0.00021916,2]
[349782434,1737425433671,-500.0,0.00021916,2]
[349782435,1737425433681,-500.0,0.00021916,2]
[349782436,1737425433691,-500.0,0.00021916,2]
[349782437,1737425433701,-500.0,0.00021916,2]
[349782438,1737425433711,-500.0,0.00021916,2]
[349782439,1737425433720,-500.0,0.00021916,2]
[349782440,1737425433730,-459.298701,0.00021916,2]
[349782441,1737425433739,-500.0,0.00021916,2]
[349782442,1737425433749,-500.0,0.00021916,2]
[349782443,1737425433759,-500.0,0.00021916,2]
[349782444,1737425433769,-500.0,0.00021916,2]
[349782445,1737425433780,-500.0,0.00021916,2]
[349782446,1737425433790,-193.95136339,0.00021916,2]
[349782447,1737425433800,-500.0,0.00021916,2]
[349782448,1737425433810,-500.0,0.00021916,2]
[349782449,1737425433821,-500.0,0.00021916,2]
[349782450,1737425433834,-500.0,0.00021916,2]
[349782451,1737425433845,-500.0,0.00021916,2]
[349782452,1737425433856,-500.0,0.00021916,2]
[349782453,1737425433866,-500.0,0.00021916,2]
[349782454,1737425433876,-173.2769339,0.00021916,2]
[349782455,1737425433886,-262.52124475,0.00021916,2]
[349782456,1737425433897,-317.79492518,0.00021916,2]
[349782457,1737425433907,-9099.38985274,0.00021917,3]
[349782458,1737425433920,-500.0,0.00021917,3]
[349782459,1737425433930,-497.00634377,0.00021917,3]
[349782460,1737425433941,-501.76127273,0.00021917,3]
[349782461,1737425433952,-502.29979048,0.00021917,3]
[349782462,1737425433962,-502.6387944,0.00021917,3]
[349782463,1737425433973,-502.61883383,0.00021917,3]
[349782464,1737425433984,-502.76009945,0.00021917,3]
[349782465,1737425433994,-503.52111087,0.00021917,3]
[349782466,1737425434004,-499.60146819,0.00021917,3]
[349782467,1737425434015,-939.17,0.00021917,3]
[349782468,1737425434025,-522.17335822,0.00021917,3]
[349782469,1737425434038,-500.0,0.00021917,3]
[349782470,1737425434048,-500.0,0.00021917,3]
[349782471,1737425434058,-159.94086897,0.00021917,3]
[349782512,1737425438600,-340.05913103,0.00021917,3]
[349782514,1737425438613,-67.19147537,0.00021917,3]
[349782520,1737425438659,-436.45501625,0.00021917,3]
[349782522,1737425438668,-512.96376372,0.00021917,3]
[349782524,1737425438678,-500.0,0.00021917,3]
[349782526,1737425438688,-500.0,0.00021917,3]
[349782528,1737425438698,-500.0,0.00021917,3]
[349782530,1737425438707,-483.9573869,0.00021917,3]
[349782532,1737425438717,-502.439948,0.00021917,3]
[349782534,1737425438727,-356.57113171,0.00021917,3]
[349782536,1737425438736,-500.0,0.00021917,3]
[349782538,1737425438746,-500.0,0.00021917,3]
[349782540,1737425438755,-500.0,0.00021917,3]
[349782542,1737425438765,-501.96167164,0.00021917,3]
[349782545,1737425438774,-497.64734983,0.00021917,3]
[349782548,1737425438784,-522.14046955,0.00021917,3]
[349782551,1737425438793,-521.71,0.00021917,3]
[349782553,1737425438802,-156.02350098,0.00021917,3]
[349782555,1737425438812,-500.0,0.00021917,3]
[349782557,1737425438821,-500.0,0.00021917,3]
[349782559,1737425438833,-500.0,0.00021917,3]
[349782561,1737425438842,-500.0,0.00021917,3]
[349782563,1737425438852,-500.0,0.00021917,3]
[349782565,1737425438861,-242.59561305,0.00021917,3]
[349782567,1737425438870,-500.0,0.00021917,3]
[349782569,1737425438879,-501.86186818,0.00021917,3]
[349782571,1737425438888,-500.0,0.00021917,3]
[349782573,1737425438898,-500.62284891,0.00021917,3]
[349782575,1737425438907,-534.83127176,0.00021917,3]
[349782577,1737425438919,-502.85764723,0.00021917,3]
[349782579,1737425438928,-500.0,0.00021917,3]
[349782581,1737425438938,-500.82256808,0.00021917,3]
[349782583,1737425438948,-500.0,0.00021917,3]
[349782585,1737425438957,-500.0,0.00021917,3]
[349782587,1737425438968,-500.0,0.00021917,3]
[349782589,1737425438978,-506.81776603,0.00021917,3]
[349782591,1737425438988,-500.0,0.00021917,3]
[349782593,1737425438998,-500.0,0.00021917,3]
[349782596,1737425439008,-500.0,0.00021917,3]
[349782598,1737425439018,-500.0,0.00021917,3]
[349782600,1737425439028,-500.0,0.00021917,3]
[349782602,1737425439038,-500.0,0.00021917,3]
[349782604,1737425439047,-1041.35307978,0.00021917,3]
[349782726,1737425440655,-2.28692022,0.00021917,3]
[349782727,1737425440665,-500.89373428,0.00021917,3]
[349782728,1737425440675,-500.0,0.00021917,3]
[349782729,1737425440685,-500.98460635,0.00021917,3]
[349782730,1737425440694,-500.0,0.00021917,3]
[349782731,1737425440705,-151.0,0.00021917,2]
[349782732,1737425440715,-2.00270177,0.00021917,2]
[349782733,1737425440738,-150.14562823,0.00021917,2]
[349782734,1737425440748,-1000.0,0.00021917,3]
[349782735,1737425440757,-500.0,0.00021917,3]
[349782736,1737425440766,-501.48541421,0.00021917,3]
[349782737,1737425440776,-500.0,0.00021917,3]
[349782738,1737425440786,-500.0,0.00021917,3]
[349782739,1737425440795,-500.0,0.00021917,3]
[349782740,1737425440804,-501.34688544,0.00021917,3]
[349782741,1737425440814,-500.0,0.00021917,3]
[349782742,1737425440824,-500.0,0.00021917,3]
[349782743,1737425440837,-501.66716201,0.00021917,3]
[349782744,1737425440847,-500.0,0.00021917,3]
[349782745,1737425440856,-500.0,0.00021917,3]
[349782746,1737425440866,-503.30235694,0.00021917,3]
[349782747,1737425440876,-503.17670183,0.00021917,3]
[349782748,1737425440886,-1054.57,0.00021917,3]
[349782749,1737425440895,-154.555783,0.00021917,2]
[349782750,1737425440905,-719.35,0.00021917,3]
[349782751,1737425440915,-500.0,0.00021917,3]
[349782752,1737425440925,-517.87043407,0.00021917,3]
[349782753,1737425440935,-502.01596035,0.00021917,3]
[349782754,1737425440945,-500.0,0.00021917,3]
[349782755,1737425440955,-500.0,0.00021917,3]
[349782756,1737425440964,-500.0,0.00021917,3]
[349782757,1737425440974,-355.10643971,0.00021917,3]
[349782758,1737425440983,-500.0,0.00021917,3]
[349782759,1737425440992,-500.0,0.00021917,3]
[349782760,1737425441001,-502.1063834,0.00021917,3]
[349782761,1737425441010,-151.0,0.00021917,2]
[349782762,1737425441020,-151.0,0.00021917,2]
[349782763,1737425441029,-151.0,0.00021917,2]
[349782764,1737425441039,-503.26750323,0.00021917,3]
[349782765,1737425441048,-503.04973448,0.00021917,3]
[349782766,1737425441057,-502.85251559,0.00021917,3]
[349782767,1737425441066,-500.0,0.00021917,3]
[349782768,1737425441075,-518.52785924,0.00021917,3]
[349782769,1737425441089,-647.53,0.00021917,3]
[349782770,1737425441099,-642.5,0.00021917,3]
[349782771,1737425441109,-502.20440547,0.00021917,3]
[349782772,1737425441120,-500.0,0.00021917,3]
[349782773,1737425441130,-504.92055414,0.00021917,3]
[349782774,1737425441140,-503.88716875,0.00021917,3]
[349782775,1737425441150,-503.61540721,0.00021917,3]
[349782776,1737425441159,-500.0,0.00021917,3]
[349782777,1737425441168,-507.82677008,0.00021917,3]
[349782778,1737425441177,-500.0,0.00021917,3]
[349782779,1737425441187,-498.001998,0.00021917,2]
[349782780,1737425441196,-500.0,0.00021917,3]
[349782781,1737425441206,-502.55602145,0.00021917,3]
[349782782,1737425441215,-500.0,0.00021917,3]
[349782783,1737425441225,-502.80603525,0.00021917,3]
[349782784,1737425441234,-500.0,0.00021917,3]
[349782785,1737425441243,-502.06691038,0.00021917,3]
[349782786,1737425441253,-500.0,0.00021917,3]
[349782787,1737425441263,-501.19247776,0.00021917,3]
[349782788,1737425441272,-501.64318105,0.00021917,3]
[349782789,1737425441282,-500.0,0.00021917,3]
[349782790,1737425441291,-500.0,0.00021917,3]
[349782791,1737425441300,-500.0,0.00021917,3]
[349782792,1737425441310,-500.0,0.00021917,3]
[349782793,1737425441319,-504.98773209,0.00021917,3]
[349782794,1737425441328,-500.0,0.00021917,3]
[349782795,1737425441341,-500.0,0.00021917,3]
[349782796,1737425441351,-500.0,0.00021917,3]
[349782797,1737425441360,-500.0,0.00021917,3]
[349782798,1737425441529,-504.58157074,0.00021917,3]
[349782799,1737425441539,-505.63411759,0.00021917,3]
[349782800,1737425441549,-500.0,0.00021917,3]
[349782801,1737425441560,-500.0,0.00021917,3]
[349782802,1737425441570,-502.67303141,0.00021917,3]
[349782803,1737425441584,-500.0,0.00021917,3]
[349782804,1737425441594,-500.0,0.00021917,3]
[349782805,1737425441604,-510.72791481,0.00021917,3]
[349782806,1737425441617,-1172.16,0.00021917,3]
[349782807,1737425441627,-500.0,0.00021917,3]
[349782808,1737425441636,-500.0,0.00021917,3]
[349782809,1737425441646,-500.0,0.00021917,3]
[349782810,1737425441659,-542.37,0.00021917,3]
[349782811,1737425441668,-500.0,0.00021917,3]
[349782812,1737425441678,-502.27447876,0.00021917,3]
[349782813,1737425441688,-500.0,0.00021917,3]
[349782814,1737425441698,-500.0,0.00021917,2]
[349782815,1737425441708,-1661.87,0.00021917,3]
[349782816,1737425441718,-500.0,0.00021917,3]
[349782817,1737425441728,-515.80756507,0.00021917,3]
[349782818,1737425441737,-500.0,0.00021917,3]
[349782819,1737425441747,-200.0,0.00021917,3]
[349782820,1737425441758,-247.98256219,0.00021917,3]
[349782821,1737425441767,-500.0,0.00021917,3]
[349782822,1737425441778,-286.11321773,0.00021917,3]
[349782823,1737425441787,-500.0,0.00021917,3]
[349782824,1737425441797,-500.0,0.00021917,3]
[349782825,1737425441806,-500.0,0.00021917,3]
[349782826,1737425441816,-505.82749203,0.00021917,3]
[349782827,1737425441825,-1184.49,0.00021917,3]
[349782828,1737425441838,-500.0,0.00021917,3]
[349782829,1737425441848,-500.0,0.00021917,3]
[349782830,1737425441858,-500.0,0.00021917,3]
[349782831,1737425441868,-641.13413146,0.00021917,3]
[349782832,1737425441878,-297.17038809,0.00021917,3]
[349782833,1737425441887,-500.0,0.00021917,3]
[349782834,1737425441897,-500.0,0.00021917,3]
[349782835,1737425441906,-708.8,0.00021917,3]
[349782836,1737425441916,-500.0,0.00021917,3]
[349782837,1737425441926,-500.0,0.00021917,3]
[349782838,1737425441936,-500.0,0.00021917,3]
[349782839,1737425441946,-1420.16,0.00021917,3]
[349782840,1737425441955,-500.0,0.00021917,3]
[349782841,1737425441964,-500.0,0.00021917,3]
[349782842,1737425441974,-504.32725002,0.00021917,3]
[349782843,1737425441983,-500.0,0.00021917,3]
[349782844,1737425441993,-500.0,0.00021917,3]
[349782845,1737425442003,-500.0,0.00021917,3]
[349782846,1737425442012,-936.8,0.00021917,3]
[349782847,1737425442022,-500.0,0.00021917,3]
[349782848,1737425442031,-500.0,0.00021917,3]
[349782849,1737425442041,-297.94872723,0.00021917,3]
[349782850,1737425442051,-501.64832544,0.00021917,3]
[349782851,1737425442060,-500.0,0.00021917,3]
[349782852,1737425442070,-500.0,0.00021917,3]
[349782853,1737425442079,-500.0,0.00021917,3]
[349782854,1737425442094,-500.0,0.00021917,3]
[349782855,1737425442104,-500.0,0.00021917,3]
[349782856,1737425442114,-500.0,0.00021917,3]
[349782857,1737425442123,-500.0,0.00021917,3]
[349782858,1737425442133,-501.79949066,0.00021917,3]
[349782859,1737425442143,-500.0,0.00021917,3]